[Event "XV American Continental 2022"]
[Site "San Salvador"]
[Date "2022.05.05"]
[Round "5.9"]
[White "Cervantes Landeiro, Thalia"]
[Black "Valdes Romero, Leonardo"]
[Result "0-1"]
[ECO "E81"]
[WhiteElo "2193"]
[BlackElo "2403"]
[Annotator "TA"]
[PlyCount "136"]
[EventDate "2022.05.02"]
[EventCountry "ESA"]
[SourceTitle "playchess.com"]
[Source "ChessBase"]
[SourceQuality "1"]
[TimeControl "40/5400+30:1800+30"]

{[%evp 17,136,43,57,25,16,20,32,26,37,33,38,7,31,13,25,21,27,26,33,0,0,-71,-21,-112,-117,-249,-233,-240,-243,-242,-239,-266,-99,-99,-92,-87,-89,-114,-27,-42,-43,-39,-21,-34,0,0,0,0,0,-34,-47,-48,-25,-101,-7,-36,-38,-186,-185,-218,-225,-437,-430,-416,-422,-399,-349,-370,-352,-410,-406,-1965,-1951,-1889,-573,-1943,-1877,-1810,-1764,-1612,-1463,-1808,-1487,-1609,-1612,-1375,-1078,-1521,-1116,-1653,-1059,-1911,-987,-1018,-972,-1775,-1741,-818,-1752,-12233,-12233,-12838,-12839,-5627,-2887,-5273,-1804,-12836,-12836,-12839,-12838,-12840,-12840,-12842,-12842,-12842,-12843,-12846,-12846,-12847,-12847]} 1. d4 {[%emt 0:00:02]} Nf6 {[%emt 0:08:40]} 2. c4 {[%emt 0:00:08]} g6 {[%emt 0:00:25]} 3. Nc3 {[%emt 0:00:10]} Bg7 {[%emt 0:00:06]} 4. e4 {[%emt 0:00:08]} d6 {[%emt 0:00:09]} 5. f3 {[%emt 0:01:01]} O-O {[%emt 0:00:44]} 6. Nge2 {[%emt 0:00:11]} c5 {[%emt 0:01:37]} 7. Be3 {[%emt 0:00:13]} cxd4 {[%emt 0:03:16]} 8. Nxd4 {[%emt 0:00:12]} Nc6 {[%emt 0:00:05]} 9. Qd2 {[%emt 0:03:33]} Bd7 {[%emt 0:00:18]} 10. Nc2 {[%emt 0:01:47] B38: Sicilian: Maroczy Bind with 5...Bg7 and 7...0-0.} Qa5 {[%emt 0:04:44]} 11. Be2 {[%emt 0:03:57]} Rfc8 {[%emt 0:00:39]} 12. Rc1 {[%emt 0:08:13] White is slightly better.} Ne5 {[%emt 0:12:18]} 13. b3 {[%emt 0:02:33]} a6 {[%emt 0:23:44]} 14. O-O {[%emt 0:15:40]} b5 $1 {[%emt 0:11:32][%cal Rb5c4] Against a4} 15. b4 {[%emt 0:03:20]} Qc7 {[%emt 0:08:16]} 16. c5 {[%emt 0:05:21]} dxc5 {[%emt 0:09:43]} 17. Bxc5 {[%emt 0:01:38]} Be6 {[%emt 0:00:52]} 18. Ne3 {[%emt 0:07:06] [#]} (18. Nd4 $5 {[%cal Rd4e6]}) 18... Rd8 $146 {[%emt 0:01:38]} ({Predecessor:} 18... Qb7 19. f4 Rd8 20. Qc2 Nc6 21. e5 Nd7 22. Ne4 a5 23. bxa5 Rxa5 24. a3 b4 {0-1 (48) Gvetadze,S (2266)-Orriols Miro,C (2099) Oropesa del Mar 2001}) 19. Qc2 {[%emt 0:01:00]} (19. Ned5 $11 Bxd5 20. Nxd5) 19... Rac8 {[%emt 0:03:15]} (19... Bh6 $17 {aiming for ...Ned7.} 20. f4 Ned7 21. Bxe7 Bxf4) 20. f4 {[%emt 0:07:09] [#]} (20. Kh1 $1 $11 {remains equal.}) 20... Ned7 $1 $17 {[%emt 0:01:34]} 21. e5 {[%emt 0:18:02]} (21. Bxe7 $17 {might work better.} Re8 22. Qd2 (22. Bxf6 Nxf6 23. Kh1 Qa7 $17)) 21... Nxc5 $19 {[%emt 0:01:07]} 22. exf6 {[%emt 0:00:34]} Bxf6 {[%emt 0:01:18]} 23. Ncd1 {[%emt 0:01:32] [#]} Bd4 {[%emt 0:01:00]} 24. bxc5 {[%emt 0:01:52] [#]} (24. Kh1 Qb6) 24... Qxc5 $2 {[%emt 0:01:50]} (24... Qa5 $1 $19 {[%cal Ra5a3]} 25. Kh1 (25. c6 $2 Bf5 $19) 25... Rxc5 26. Qxc5 Bxc5 27. Rxc5 Qxa2) 25. Qxc5 $17 {[%emt 0:02:06]} Rxc5 {[%emt 0:00:07]} 26. Rxc5 {[%emt 0:01:41]} Bxc5 {[%emt 0:00:01] This bishop pair is nice.} 27. Kf2 {[%emt 0:02:11]} Bxa2 {[%emt 0:00:19] Black is more active.} (27... Rd2 $17 {Strongly threatening ...Bg4.} 28. Nc3 Bd4) 28. Nc3 $11 {[%emt 0:00:32]} Be6 {[%emt 0:00:05][%mdl 1024] Black has compensation.} 29. Ne4 {[%emt 0:01:38]} Bd4 {[%emt 0:01:04]} 30. Rd1 {[%emt 0:02:24][%cal Oe4c5]} Bc8 {[%emt 0:00:22]} (30... Bb6 $5 {[%cal Rd8d1]}) 31. Nc5 {[%emt 0:02:15]} Rd6 {[%emt 0:01:45]} 32. Ne4 {[%emt 0:02:35]} Rd7 {[%emt 0:00:34]} 33. Bf3 {[%emt 0:01:59]} a5 {[%emt 0:00:45]} 34. Rc1 {[%emt 0:01:19]} Rd8 {[%emt 0:01:53]} 35. Ke2 {[%emt 0:01:32]} (35. Rd1 $11) 35... a4 {[%emt 0:00:45]} ({Black should play} 35... b4 $17 36. Nc5 b3 37. Nxb3 Ba6+ 38. Nc4 a4) 36. Nc2 {[%emt 0:00:44]} Bb2 {[%emt 0:00:13]} (36... Bb6 $5 {[%cal Rc8e6]}) 37. Rb1 {[%emt 0:00:54] Black continues to play with concentration.} ({Only move:} 37. Rd1 $1 $15 Rxd1 38. Kxd1) 37... a3 $19 {[%emt 0:00:07]} 38. Nc5 {[%emt 0:01:20]} Bf5 {[%emt 0:01:03]} 39. Rd1 $2 {[%emt 0:00:49]} (39. Be4 Bg4+ 40. Bf3) 39... Rc8 {[%emt 0:00:44]} 40. Nxa3 {[%emt 0:00:31]} Rxc5 {[%emt 0:01:01]} ({Don't blunder} 40... Bxa3 $2 41. Nb3 $19) 41. g4 {[%emt 0:01:54]} Bxa3 {[%emt 0:02:05]} 42. gxf5 {[%emt 0:00:10]} Rxf5 {[%emt 0:00:06][%mdl 4096] Endgame KRB-KRB} 43. Rd5 {[%emt 0:01:28]} Bd6 {[%emt 0:00:35]} 44. Rxf5 {[%emt 0:00:23]} (44. Ke3 $142 Rxf4 45. Rd4) 44... gxf5 {[%emt 0:00:05] KB-KB. Black is clearly winning.} 45. Ke3 {[%emt 0:00:36]} e6 {[%emt 0:00:19]} 46. h3 {[%emt 0:00:57]} b4 {[%emt 0:00:11]} 47. Bd1 {[%emt 0:00:26]} Kf8 {[%emt 0:00:51]} 48. Bb3 {[%emt 0:01:00]} Ke7 {[%emt 0:00:09]} 49. Ba4 {[%emt 0:00:30]} Bb8 {[%emt 0:00:30]} 50. Bb3 {[%emt 0:02:25]} Kd6 {[%emt 0:01:33] Hoping for ...Kc5.} 51. Kd4 {[%emt 0:02:10]} Ba7+ {[%emt 0:02:45]} 52. Kd3 {[%emt 0:00:09]} Bf2 {[%emt 0:00:31]} 53. Ba4 {[%emt 0:01:43]} Bh4 {[%emt 0:00:24] And now ...Bg3 would win.} 54. Kd4 {[%emt 0:01:40]} Bf6+ {[%emt 0:00:24]} 55. Kd3 {[%emt 0:01:39]} Bg7 {[%emt 0:00:06] ...Bh6 is the strong threat.} 56. Bb3 {[%emt 0:01:48]} Bh6 {[%emt 0:01:19]} 57. Kc4 {[%emt 0:02:39]} Bxf4 {[%emt 0:00:10]} 58. Kxb4 {[%emt 0:00:06]} Ke5 {[%emt 0:00:15]} 59. Kc3 {[%emt 0:01:57]} Ke4 {[%emt 0:00:09]} 60. Ba4 {[%emt 0:00:28]} Be3 {[%emt 0:01:25]} 61. Bc6+ {[%emt 0:02:18]} Kf4 {[%emt 0:00:16]} 62. Kd3 {[%emt 0:00:28]} e5 {[%emt 0:00:27][%cal Be6e5,Be5e4][%mdl 32]} 63. Be8 {[%emt 0:02:07]} f6 {[%emt 0:00:30]} 64. Ke2 {[%emt 0:00:10]} e4 {[%emt 0:00:09]} 65. Bd7 {[%emt 0:00:25]} Bc5 {[%emt 0:00:14]} 66. h4 {[%emt 0:00:47]} Ke5 {[%emt 0:00:19]} 67. h5 {[%emt 0:00:40]} f4 {[%emt 0:00:13][%cal Bf5f4,Bf4f3][%mdl 32]} 68. Bb5 {[%emt 0:00:35]} f3+ {[%emt 0:00:12] Weighted Error Value: White=0.83/Black=0.37} 0-1

[Event "XV American Continental 2022"]
[Site "San Salvador"]
[Date "2022.05.05"]
[Round "5.10"]
[White "Thavandiran, Shiyam"]
[Black "Montes Orozco, Miguel Angel"]
[Result "1-0"]
[ECO "C48"]
[WhiteElo "2399"]
[BlackElo "2166"]
[Annotator "TA"]
[PlyCount "110"]
[EventDate "2022.05.02"]
[EventCountry "ESA"]
[SourceTitle "playchess.com"]
[Source "ChessBase"]
[SourceQuality "1"]
[TimeControl "40/5400+30:1800+30"]

{[%evp 9,110,18,27,22,16,8,13,8,12,3,8,7,10,0,19,29,41,12,25,0,0,0,0,-3,-6,-5,0,0,0,0,37,23,86,72,90,76,70,70,58,33,52,0,6,18,57,63,275,284,384,383,381,381,372,337,463,463,463,463,463,463,463,463,462,453,632,632,632,632,632,632,632,625,625,618,610,589,581,581,579,572,505,441,650,622,1135,1126,1066,1037,971,916,5575,4922,6009,5972,5947,5933,5906,5736,5498,5398,5583,5187,1016]} 1. e4 {[%emt 0:00:04]} e5 {[%emt 0:03:00]} 2. Nf3 {[%emt 0:00:20]} Nc6 {[%emt 0:00:08]} 3. Nc3 {[%emt 0:00:15]} Nf6 {[%emt 0:03:32]} 4. Bb5 {[%emt 0:00:28][%cal Bf1b5,Bb5a4,Ba4b3][%mdl 32]} Bd6 {[%emt 0:00:35]} 5. d3 {[%emt 0:00:23]} a6 {[%emt 0:01:14]} 6. Ba4 {[%emt 0:00:19] C48: Four Knights: 4 Bb5, replies other than 4...Bb4.} O-O {[%emt 0:00:40]} 7. Bg5 {[%emt 0:22:32]} b5 {[%emt 0:07:45]} 8. Bb3 {[%emt 0:00:07] The position is equal.} Be7 {[%emt 0:00:05]} 9. a3 {[%emt 0:01:00]} d6 {[%emt 0:02:07]} 10. h3 {[%emt 0:01:19]} Be6 {[%emt 0:04:07] [#]} 11. Nd5 $146 {[%emt 0:01:50]} ({Predecessor:} 11. Bxf6 Bxf6 12. Nd5 g6 13. Nxf6+ Qxf6 14. c3 Bxb3 15. Qxb3 Nd8 16. O-O Ne6 17. Qd1 {½-½ (41) Popovic,P (2446)-Nestorovic,N (2506) Ruma 2017}) 11... h6 {[%emt 0:11:04]} 12. Bd2 {[%emt 0:07:11]} Nb8 {[%emt 0:06:34]} 13. a4 Nbd7 {[%emt 0:08:39]} 14. axb5 {[%emt 0:28:15] [#] Nxf6+ is the strong threat.} Bxd5 {[%emt 0:00:09]} 15. exd5 {[%emt 0:01:10]} axb5 {[%emt 0:03:20]} 16. O-O {[%emt 0:07:29]} Rxa1 {[%emt 0:02:01]} 17. Qxa1 {[%emt 0:00:08]} Nc5 {[%emt 0:00:29]} 18. Ba2 {[%emt 0:01:07]} Qa8 {[%emt 0:01:12]} 19. b4 {[%emt 0:00:19]} Na4 {[%emt 0:03:49]} 20. c4 {[%emt 0:02:51]} c6 {[%emt 0:00:12]} (20... bxc4 $11 21. dxc4 Ne4) 21. dxc6 $16 {[%emt 0:03:31]} Qxc6 {[%emt 0:00:38]} 22. c5 {[%emt 0:03:40]} dxc5 {[%emt 0:04:06]} 23. Nxe5 {[%emt 0:00:12]} ({Much weaker is} 23. Qxe5 Bd6 24. Qf5 Qc8 $11) 23... Qb7 {[%emt 0:10:22]} 24. Ng6 {[%emt 0:02:50] Strongly threatening bxc5.} Rd8 {[%emt 0:02:39]} 25. Nxe7+ {[%emt 0:07:49]} (25. bxc5 $14 Bxc5 26. Ne5) 25... Qxe7 $11 {[%emt 0:00:05]} 26. Re1 {[%emt 0:00:31]} Qd6 {[%emt 0:01:49]} 27. bxc5 {[%emt 0:00:34]} Nxc5 {[%emt 0:00:40] This move loses the game for Black.} ({Black should play} 27... Qxc5 $14 28. Rc1 Qd6) 28. Bb4 $18 {[%emt 0:00:44] This bishop pair is nice.} Nd5 {[%emt 0:03:11]} 29. Bxd5 {[%emt 0:03:09]} Qxd5 {[%emt 0:00:06] [#]} 30. Re5 $1 {[%emt 0:00:05]} Qxd3 {[%emt 0:06:08]} 31. Rxc5 {[%emt 0:02:45]} Qd1+ {[%emt 0:00:19]} 32. Qxd1 {[%emt 0:00:05] White is clearly winning.} Rxd1+ {[%emt 0:00:04][%mdl 4096] Endgame KRB-KR} 33. Kh2 {[%emt 0:00:05]} Rb1 {[%emt 0:00:04]} 34. Rxb5 {[%emt 0:00:04]} Rb2 {[%emt 0:00:05]} 35. f3 {[%emt 0:00:17]} Kh7 {[%emt 0:00:32]} 36. Rb6 {[%emt 0:00:07]} h5 {[%emt 0:01:49]} 37. h4 {[%emt 0:00:06]} f6 {[%emt 0:00:32]} 38. Bc5 {[%emt 0:00:10]} Rc2 {[%emt 0:00:10]} 39. Bd6 {[%emt 0:00:16]} Rd2 {[%emt 0:00:45]} 40. Bf4 {[%emt 0:01:54]} Rd4 {[%emt 0:00:42]} 41. Kg3 {[%emt 0:30:14]} Ra4 {[%emt 0:30:12]} 42. Bd2 {[%emt 0:01:26]} Ra2 {[%emt 0:00:18]} 43. Bc3 {[%emt 0:00:00]} Kg6 {[%emt 0:00:00]} 44. Rb7 {[%emt 0:00:00]} Rc2 {[%emt 0:00:00]} 45. Bb2 {[%emt 0:00:00]} Kf5 {[%emt 0:00:00]} (45... Rc8 $142 46. Rd7 Rc2) 46. Ba3 {[%emt 0:00:00]} g5 {[%emt 0:00:00]} 47. Rb5+ {[%emt 0:00:00]} Kg6 {[%emt 0:00:00]} 48. hxg5 {[%emt 0:00:00]} fxg5 {[%emt 0:00:00]} 49. Be7 {[%emt 0:00:00]} g4 {[%emt 0:00:00]} 50. fxg4 {[%emt 0:00:00]} hxg4 {[%emt 0:00:00]} 51. Rg5+ {[%emt 0:00:00]} Kf7 {[%emt 0:00:00]} 52. Bb4 {[%emt 0:00:00]} Kf6 {[%emt 0:00:00]} 53. Rxg4 {[%emt 0:00:00]} Kf5 {[%emt 0:00:00]} 54. Rf4+ {[%emt 0:00:00]} Ke5 {[%emt 0:00:00]} 55. Rf3 {[%emt 0:00:00]} Kd5 {Weighted Error Value: White=0.07 (flawless) /Black=0.30} 1-0

[Event "XV American Continental 2022"]
[Site "San Salvador"]
[Date "2022.05.05"]
[Round "5.11"]
[White "Chavez, Ricardo Ernesto"]
[Black "Juarez Flores, Carlos A."]
[Result "1-0"]
[ECO "C02"]
[WhiteElo "2184"]
[BlackElo "2367"]
[Annotator "TA"]
[PlyCount "53"]
[EventDate "2022.05.02"]
[EventCountry "ESA"]
[SourceTitle "playchess.com"]
[Source "ChessBase"]
[SourceQuality "1"]
[TimeControl "40/5400+30:1800+30"]

{[%evp 12,53,18,18,25,15,45,6,33,33,42,45,54,35,73,37,60,29,66,72,94,87,150,149,147,141,145,141,542,550,550,550,550,542,706,703,695,695,682,679,665,646,609,597]} 1. e4 {[%emt 0:06:50][%cal Be2e4,Be4e5][%mdl 32]} e6 {[%emt 0:00:57]} 2. d4 {[%emt 0:00:07]} d5 {[%emt 0:00:16]} 3. e5 {[%emt 0:00:10]} c5 {[%emt 0:00:19]} 4. c3 {[%emt 0:00:05]} Nc6 {[%emt 0:00:53]} 5. Nf3 {[%emt 0:00:07]} Qb6 {[%emt 0:00:25]} 6. a3 {[%emt 0:00:17]} f6 {[%emt 0:02:18]} 7. Bd3 $1 {[%emt 0:00:56] 7.Bd3 is better than 7.b4.} fxe5 {[%emt 0:02:40] C02: French: Advance Variation.} 8. dxe5 {[%emt 0:00:54]} g6 {[%emt 0:00:37]} 9. O-O {[%emt 0:00:43]} Bg7 {[%emt 0:00:35] The position is equal.} (9... c4 $5 {[%cal Rc4d3]} 10. Bc2 Bg7 $15) 10. c4 {[%emt 0:03:52]} Nge7 {[%emt 0:02:01]} 11. Nc3 {[%emt 0:00:36]} O-O {[%emt 0:05:29]} 12. Bg5 $1 {[%emt 0:07:47] [#]} d4 $146 {[%emt 0:13:22]} (12... Qxb2 $2 13. Na4 Qxa1 14. Qxa1 $18) ({Predecessor:} 12... Rf7 13. cxd5 Nxd5 14. Re1 Nxc3 15. bxc3 Bd7 16. Bh4 Rxf3 17. Qxf3 Nxe5 18. Qe2 Nxd3 19. Qxd3 {1-0 (35) Quesada Perez,Y (2622)-Hevia Alejano,C (2471) Chicago 2019}) 13. Na4 {[%emt 0:16:24]} (13. Ne4 $5 {[%cal Re4f6]}) 13... Qc7 {[%emt 0:00:30]} 14. Re1 {[%emt 0:00:30]} ({But not} 14. Nxc5 Nxe5 15. Nxe5 Bxe5 $11) 14... b6 {[%emt 0:06:21]} 15. b4 $1 {[%emt 0:02:25]} cxb4 {[%emt 0:07:59]} 16. axb4 {[%emt 0:00:50] Hoping for b5.} Nxb4 {[%emt 0:00:03] [#]} ({Better is} 16... Bb7) 17. Nxb6 $1 $16 {[%emt 0:03:36][%mdl 576] Pin} Rb8 {[%emt 0:07:17]} 18. Nxc8 {[%emt 0:01:06] White is more active.} Rbxc8 19. Nxd4 {[%emt 0:16:36]} Rfd8 $2 {[%emt 0:10:46][%mdl 8192] [#] Black cannot hold the game after this.} (19... Nxd3 $16 {is a better chance.} 20. Qxd3 Qd7) 20. Nxe6 $1 $18 {[%emt 0:01:05] White is clearly winning.} Rxd3 {[%emt 0:25:25]} 21. Nxc7 {[%emt 0:01:44]} Rxd1 {[%emt 0:00:23]} 22. Raxd1 {[%emt 0:00:06]} ({Less strong is} 22. Rexd1 Rxc7 23. Rd8+ Kf7 $16) 22... Rxc7 {[%emt 0:00:37]} 23. Rd8+ {[%emt 0:00:22]} Bf8 {[%emt 0:00:02]} 24. Bh6 $1 {[%emt 0:03:05][%csl Gh6][%cal Rd8f8]} Rc8 {[%emt 0:00:02] [#]} 25. Bxf8 $1 {[%emt 0:00:22] aiming for Rxc8.} Rxd8 {[%emt 0:00:08]} 26. Bxe7 {[%emt 0:00:06]} Rb8 {[%emt 0:05:32]} 27. Bd6 {[%emt 0:00:07] Weighted Error Value: White=0.04 (flawless) /Black=0.56} 1-0

[Event "XV American Continental 2022"]
[Site "San Salvador"]
[Date "2022.05.06"]
[Round "6.1"]
[White "Yoo, Christopher Woojin"]
[Black "Swiercz, Dariusz"]
[Result "1/2-1/2"]
[ECO "C51"]
[WhiteElo "2535"]
[BlackElo "2665"]
[Annotator "TA"]
[PlyCount "38"]
[EventDate "2022.05.02"]
[EventCountry "ESA"]
[SourceTitle "playchess.com"]
[Source "ChessBase"]
[SourceQuality "1"]
[TimeControl "40/5400+30:1800+30"]

{[%evp 12,38,0,-12,-7,0,-15,-2,-17,-11,-12,-18,0,1,0,4,18,14,10,0,11,0,9,0,16,20,23,17,42]} 1. e4 {[%emt 0:00:15]} e5 {[%emt 0:04:53]} 2. Nf3 {[%emt 0:00:06]} Nc6 {[%emt 0:00:04]} 3. Bc4 {[%emt 0:00:07]} Bc5 {[%emt 0:00:04]} 4. b4 {[%emt 0:00:06]} Bxb4 {[%emt 0:00:24]} 5. c3 {[%emt 0:00:04]} Be7 {[%emt 0:01:02]} 6. d4 {[%emt 0:00:07]} Na5 {[%emt 0:00:06]} 7. Be2 {[%emt 0:00:44]} d6 {[%emt 0:00:20] C51: Evans Gambit: Declined and Accepted without 5...Ba5.} 8. Qa4+ {[%emt 0:00:22]} c6 {[%emt 0:00:06]} 9. dxe5 {[%emt 0:00:12]} dxe5 {[%emt 0:00:32]} 10. Nxe5 {[%emt 0:00:12]} Nf6 {[%emt 0:00:30]} 11. O-O {[%emt 0:00:37]} b5 {[%emt 0:12:38]} (11... Qc7 $5 {[%cal Rc7e5]} 12. Nf3 O-O $11) 12. Qc2 {[%emt 0:00:34]} Qc7 {[%emt 0:00:15]} 13. Nf3 {[%emt 0:04:13]} Bg4 $5 {[%emt 0:14:45][%mdl 4] A promising side line.} 14. Nbd2 {[%emt 0:02:41]} O-O {[%emt 0:05:22]} 15. c4 {[%emt 0:02:41]} Nxc4 {[%emt 0:06:10]} 16. Nxc4 {[%emt 0:01:08]} bxc4 {[%emt 0:00:05]} 17. Qxc4 {[%emt 0:01:17] [#]} Nd7 $146 {[%emt 0:10:07]} ({Predecessor:} 17... Rab8 18. e5 Be6 19. Qh4 Nd5 20. Qg3 Bf5 21. Nd4 Bg6 22. Bf3 Rfd8 23. Bd2 c5 {0-1 (69) Alekseenko,K (2447)-Goganov,A (2556) St Petersburg 2013}) 18. Bb2 {[%emt 0:03:19]} Bxf3 {[%emt 0:05:33]} 19. Bxf3 {[%emt 0:00:06]} Bd6 {[%emt 0:00:03] An even fight not without its subleties.  Weighted Error Value: White=0.02 (flawless) /Black=0.05 (flawless)} 1/2-1/2

[Event "XV American Continental 2022"]
[Site "San Salvador"]
[Date "2022.05.06"]
[Round "6.2"]
[White "Gareyev, Timur"]
[Black "Krysa, Leandro"]
[Result "1-0"]
[ECO "A21"]
[WhiteElo "2565"]
[BlackElo "2525"]
[Annotator "TA"]
[PlyCount "57"]
[EventDate "2022.05.02"]
[EventCountry "ESA"]
[SourceTitle "playchess.com"]
[Source "ChessBase"]
[SourceQuality "1"]
[TimeControl "40/5400+30:1800+30"]

{[%evp 9,57,15,15,10,13,8,21,18,12,25,27,17,24,7,24,18,32,27,30,25,38,21,25,-11,-1,-22,0,-6,4,0,264,279,313,316,311,307,270,287,265,289,275,215,372,354,496,466,576,573,557,570]} 1. c4 {[%emt 0:01:32]} e5 {[%emt 0:00:20]} 2. Nc3 {[%emt 0:00:37]} Bb4 {[%emt 0:00:15]} 3. Nd5 {[%emt 0:00:57]} a5 {[%emt 0:00:35]} 4. Nf3 {[%emt 0:02:33]} d6 {[%emt 0:01:03]} 5. a3 {[%emt 0:03:33]} Bc5 {[%emt 0:00:17]} 6. e3 {[%emt 0:00:02] A21: English Opening: 1...e5 2 Nc3.} c6 {[%emt 0:00:40] [#]} 7. d4 $1 {[%emt 0:00:54]} Ba7 {[%emt 0:00:15]} 8. Nc3 {[%emt 0:00:37] The position is equal.} (8. dxe5 cxd5 9. Qxd5 Nc6 10. Qxd6 Qxd6 11. exd6 Nf6 $17) 8... Nd7 {[%emt 0:00:24]} 9. Be2 {[%emt 0:02:05]} Ngf6 {[%emt 0:00:18]} 10. b4 {[%emt 0:00:43]} O-O {[%emt 0:03:45]} 11. O-O {[%emt 0:03:54] [#]} Re8 $146 {[%emt 0:04:35]} ({Predecessor:} 11... Bb8 12. Bb2 Qe7 13. Qb3 Re8 14. Rfe1 Nf8 15. d5 cxd5 16. cxd5 Bg4 17. h3 Bh5 {1-0 (49) Erenberg,A (2512)-Kobo,O (2490) Ramat Gan 2021}) 12. b5 {[%emt 0:10:46]} e4 {[%emt 0:08:22]} 13. Nd2 {[%emt 0:04:38]} d5 {[%emt 0:05:44]} 14. bxc6 {[%emt 0:08:13]} bxc6 {[%emt 0:00:05]} 15. cxd5 {[%emt 0:00:07]} cxd5 {[%emt 0:00:09]} 16. Nb5 {[%emt 0:00:06]} Bb8 {[%emt 0:00:50][%cal Oh7h5]} 17. a4 $1 {[%emt 0:01:53]} Nf8 {[%emt 0:03:16]} 18. Ba3 {[%emt 0:00:21]} Ra6 {[%emt 0:10:51][%cal Oh7h5]} 19. Rc1 {[%emt 0:04:01]} Bxh2+ $2 {[%emt 0:21:31][%mdl 8192]} 20. Kxh2 $18 {[%emt 0:00:09]} Ng4+ {[%emt 0:00:22]} 21. Bxg4 {[%emt 0:01:13]} Rh6+ {[%emt 0:04:23]} 22. Kg1 $1 {[%emt 0:05:35]} (22. Bh3 $2 Bxh3 23. g3 (23. gxh3 Qh4) 23... Qg5 $19) 22... Qh4 {[%emt 0:00:14][%csl Gh6][%cal Rh4h1] [#]} 23. f3 $1 {[%emt 0:01:36]} (23. Bh3 Bxh3 24. g3 (24. gxh3 $2 Qxh3) 24... Qg5 $11) 23... Bxg4 {[%emt 0:15:41] [#]} 24. Bd6 {[%emt 0:03:43] Against Qh2+} (24. fxg4 Qh2+ 25. Kf2 Rf6+ 26. Ke2 Qxg2+ 27. Ke1 Qg3+ 28. Ke2 Qg2+ 29. Ke1 Qg3+ 30. Ke2 Qg2+ $11) 24... Bd7 {[%emt 0:06:27]} 25. Qe1 {[%emt 0:01:45]} Qh5 {[%emt 0:02:30]} (25... Qxe1 26. Rfxe1 Bxb5) 26. Bf4 {[%emt 0:04:19]} Rg6 {[%emt 0:01:40]} (26... Qh1+ $142 27. Kf2 Qh4+ 28. Bg3 Qg5) 27. Nc7 {[%emt 0:04:06] White is clearly winning.} Bh3 {[%emt 0:03:59]} 28. Bg3 {[%emt 0:01:15]} ({Weaker is} 28. Nxe8 Rxg2+ 29. Kh1 Rg6 $17) 28... Rd8 {[%emt 0:02:21]} 29. fxe4 {[%emt 0:01:12] Weighted Error Value: White=0.06 (flawless) /Black=0.42} 1-0

[Event "XV American Continental 2022"]
[Site "San Salvador"]
[Date "2022.05.06"]
[Round "6.3"]
[White "Pichot, Alan"]
[Black "Thavandiran, Shiyam"]
[Result "1-0"]
[ECO "C11"]
[WhiteElo "2652"]
[BlackElo "2399"]
[Annotator "TA"]
[PlyCount "43"]
[EventDate "2022.05.02"]
[EventCountry "ESA"]
[SourceTitle "playchess.com"]
[Source "ChessBase"]
[SourceQuality "1"]
[TimeControl "40/5400+30:1800+30"]

{[%evp 13,43,0,32,23,21,12,34,32,31,37,34,35,33,15,16,18,30,47,60,60,60,60,51,56,48,53,61,61,140,162,352,335]} 1. e4 {[%emt 0:00:04]} e6 {[%emt 0:07:35]} 2. d4 {[%emt 0:00:07]} d5 {[%emt 0:00:07]} 3. Nc3 {[%emt 0:00:06]} Nf6 {[%emt 0:00:07]} 4. e5 {[%emt 0:00:08]} Nfd7 {[%emt 0:00:20]} 5. f4 {[%emt 0:00:07]} c5 {[%emt 0:00:06]} 6. Nf3 {[%emt 0:00:05]} Nc6 {[%emt 0:00:11]} 7. Be3 {[%emt 0:00:06]} a6 {[%emt 0:00:34]} 8. Ne2 {[%emt 0:00:37] C11: French: Classical System: 4 e5 and 4 Bg5 dxe4.} Qb6 {[%emt 0:05:38]} 9. Qc1 {[%emt 0:00:29]} cxd4 {[%emt 0:09:21]} 10. Nexd4 {[%emt 0:00:18] White is slightly better.} Nxd4 {[%emt 0:25:12]} 11. Nxd4 {[%emt 0:03:29]} f6 {[%emt 0:04:33]} 12. exf6 {[%emt 0:19:41]} Nxf6 {[%emt 0:02:14] [#]} 13. Bd3 $146 {[%emt 0:04:16]} ({Predecessor:} 13. Be2 Bc5 14. c3 Qc7 15. O-O O-O 16. Bf3 Bd7 17. Qd2 Ne4 18. Bxe4 dxe4 19. Nb3 {½-½ (53) Vasilic,M-Puaca,G (2145) Serbia 2007}) 13... Bc5 {[%emt 0:06:01]} 14. c3 {[%emt 0:01:12] Active counter play!} Qc7 {[%emt 0:02:01]} 15. O-O {[%emt 0:02:48]} e5 {[%emt 0:13:12]} 16. fxe5 {[%emt 0:04:40]} Qxe5 {[%emt 0:00:34]} 17. Bf4 {[%emt 0:00:49]} Bxd4+ {[%emt 0:13:15]} 18. Kh1 {[%emt 0:00:26]} ({Much worse is} 18. cxd4 Qxd4+ 19. Qe3+ Qxe3+ 20. Bxe3 O-O $11) 18... Qe7 {[%emt 0:00:55] [#] White must now prevent ...Ba7.} 19. cxd4 {[%emt 0:00:29] Hoping for Re1.} O-O {[%emt 0:00:09]} 20. Be5 {[%emt 0:11:56] A strong pair of Bishops.} Ne4 {[%emt 0:01:33] Prevents Qg5.} (20... Be6 $1 $14) 21. Rxf8+ $16 {[%emt 0:02:43]} Qxf8 $2 {[%emt 0:00:17] [#]} (21... Kxf8 22. Qe3 Be6 23. Bxe4 dxe4 24. Qxe4 Kg8) 22. Qc7 $1 {[%emt 0:01:45] Weighted Error Value: White=0.02 (flawless) /Black=0.33} ({Not} 22. Bxe4 dxe4 23. Qe3 Be6 $14) 1-0